[Event "XTX Markets London Masters 2024"]
[Site "London"]
[Date "2024.11.29"]
[Round "1.23"]
[White "Czopor, Maciej"]
[Black "Dignam, Matthew"]
[Result "1-0"]
[ECO "E73"]
[WhiteElo "2383"]
[BlackElo "2123"]
[Annotator "TA"]
[PlyCount "103"]
[EventDate "2024.11.28"]
[EventType "swiss"]
[EventCountry "ENG"]
[SourceTitle "playchess.com"]
[Source "ChessBase"]
[SourceQuality "1"]
[TimeControl "40/5400+30:1800+30"]

{[%evp 14,103,37,41,42,17,39,0,0,0,0,0,0,16,24,6,20,5,15,17,22,22,17,5,24,-14,-14,-2,-12,-25,0,0,57,45,37,50,41,47,42,51,74,0,0,0,0,0,166,168,279,177,239,153,174,83,239,239,335,71,362,360,331,268,256,115,182,0,0,0,0,0,510,507,1509,1423,1299,835,4702,2085,1118,505,1215,1206,1796,1650,29966,29952,29978,29979,29988,29989,29989,29990]} 1. d4 {[%emt 0:00:04]} Nf6 {[%emt 0:00:06]} 2. c4 {[%emt 0:00:04]} g6 {[%emt 0:00:08]} 3. Nc3 {[%emt 0:00:03]} Bg7 {[%emt 0:00:13]} 4. e4 {[%emt 0:00:04]} d6 {[%emt 0:00:08]} 5. Be2 {[%emt 0:00:05]} O-O {[%emt 0:02:47]} 6. Be3 {[%emt 0:00:05]} e5 {[%emt 0:01:50]} 7. d5 {[%emt 0:00:03]} Na6 {[%emt 0:02:34]} 8. h4 {[%emt 0:00:10][%cal Bh2h4,Bh4h5,Bh5h6][%mdl 32]} Nc5 {[%emt 0:01:01]} 9. Qc2 {[%emt 0:00:04]} c6 {[%emt 0:01:38]} 10. h5 {[%emt 0:00:07]} cxd5 {[%emt 0:00:27] The position is equal.} 11. cxd5 {[%emt 0:00:03]} Qa5 {[%emt 0:00:53]} 12. h6 {[%emt 0:01:19]} Bh8 {[%emt 0:00:17]} 13. f3 {[%emt 0:00:07]} Nh5 {[%emt 0:04:21]} 14. a3 {[%emt 0:00:03]} Ng3 {[%emt 0:03:27]} 15. b4 {[%emt 0:00:13]} Qd8 {[%emt 0:01:48] [#] White must now prevent ...Ncxe4.} 16. Rh2 {[%emt 0:00:04]} Nxe2 {[%emt 0:00:39]} 17. Ngxe2 {[%emt 0:00:04]} (17. bxc5 Nd4 18. Qa2 dxc5 $17) 17... Na6 {[%emt 0:00:52]} 18. g4 {[%emt 0:00:04]} Nc7 {[%emt 0:11:55] Dodges Nb5} 19. Kd2 {[%emt 0:00:34]} Bf6 {[%emt 0:02:54]} 20. Qd3 {[%emt 0:00:04]} Bd7 {[%emt 0:06:03]} 21. a4 {[%emt 0:01:23]} Bg5 {[%emt 0:04:46]} 22. Rhh1 {[%emt 0:00:35]} a5 {[%emt 0:08:30]} (22... Bxe3+ $11 23. Qxe3 Ne8) 23. b5 $14 {[%emt 0:02:22]} Rc8 {[%emt 0:01:12]} 24. Nd1 {[%emt 0:24:17]} Na8 {[%emt 0:01:55]} 25. Nb2 {[%emt 0:02:28]} Nb6 {[%emt 0:06:15]} 26. Rac1 {[%emt 0:00:31]} Qf6 {[%emt 0:15:00]} 27. Bxg5 {[%emt 0:04:20]} ({White should try} 27. Rhf1 $16) 27... Qxg5+ $11 {[%emt 0:00:08]} 28. Qe3 {[%emt 0:00:02] The board is on fire.} Qxe3+ {[%emt 0:03:45]} 29. Kxe3 {[%emt 0:00:03]} Rxc1 $2 {[%emt 0:04:55]} (29... f5 $11) 30. Rxc1 $18 {[%emt 0:08:03]} Rc8 {[%emt 0:00:08] Prevents Nc4.} (30... f5 $142) 31. g5 {[%emt 0:01:44] Hoping for Rxc8+.} f6 {[%emt 0:05:38]} (31... f5 $142 32. Rxc8+ (32. gxf6 Kf7 $16) 32... Nxc8) 32. f4 {[%emt 0:02:03]} (32. gxf6 $6 g5 $16) 32... exf4+ {[%emt 0:01:07]} 33. Kxf4 {[%emt 0:00:04]} fxg5+ $2 {[%emt 0:02:09]} (33... Kf7 $16) 34. Kxg5 {[%emt 0:00:05]} Re8 {[%emt 0:01:24]} (34... Kf8 $142 35. Rxc8+ Bxc8) 35. Ng3 $2 {[%emt 0:00:59]} (35. Nc4 $18 Nxc4 36. Rxc4) 35... Rf8 $2 {[%emt 0:03:04][%mdl 8192]} (35... Re5+ $16 36. Kh4 (36. Kf6 $2 Bxb5 37. Rc7 Nd7+ 38. Rxd7 Bxd7 $19) 36... g5+ 37. Kh5 Be8+ 38. Kg4 Bd7+ 39. Kf3 Re7) 36. Rc7 {[%emt 0:07:42]} Rf3 {[%emt 0:00:35]} 37. Rxb7 {[%emt 0:00:04]} (37. Ne2 Rf2) 37... Rxg3+ {[%emt 0:00:39]} 38. Kf4 {[%emt 0:04:50]} (38. Kf6 $18 {is more deadly.} Rf3+ 39. Ke7 Rf7+ 40. Kd8 (40. Kxd6 Nc8+ 41. Kc5 g5 $18) 40... Bxb5 41. Rxb6) 38... Rg2 $16 {[%emt 0:03:03]} 39. Nd3 $2 {[%emt 0:02:11]} (39. Rxb6 $18 g5+ 40. Ke3 Rxb2 41. Rxd6) 39... g5+ $11 {[%emt 0:00:07]} (39... Nxa4 40. Rxd7 Rd2 41. b6 (41. Ke3 Rxd3+ 42. Kf4 g5+ 43. Kg4 Nc5 $11) 41... Nxb6 (41... Rxd3 $2 42. b7 $18) 42. Rxd6 Rxd3 43. Rxb6 $18) 40. Kf3 $1 {[%emt 0:01:07]} Rd2 {[%emt 0:00:20]} 41. Nf2 {[%emt 0:30:41] Against g4+} g4+ $2 {[%emt 0:30:49][%mdl 8192]} (41... Nc4 $1 $11 {and Black has nothing to worry.} 42. Rxd7 Ne5+ 43. Ke3 Nc4+ 44. Kf3 Ne5+ 45. Ke3 Nc4+ 46. Kf3) 42. Kg3 $18 {[%emt 0:00:04]} ({Not} 42. Nxg4 Bxg4+ (42... Nxa4 $2 {too greedy.} 43. Rxd7 Kf8 44. Nf6 $18) 43. Kxg4 Nxa4 $11) 42... Nxd5 {[%emt 0:00:00]} (42... Rc2 $142 43. Rxb6 Rc3+ 44. Kg2 Kf7 45. Rxd6 Ke7) 43. exd5 {[%emt 0:00:00][%mdl 4096] Endgame. KRB-KRN} Bf5 {[%emt 0:00:00]} 44. b6 {[%emt 0:00:00]} Rb2 {[%emt 0:00:00]} 45. Nxg4 {[%emt 0:00:00]} Kf8 {[%emt 0:00:00]} 46. Ne3 {[%emt 0:00:00]} (46. Nf6 $142 Rb1 47. Rc7 (47. Nxh7+ Bxh7 48. Rxh7 Rxb6 $18)) 46... Be4 {[%emt 0:00:00]} (46... Bd3 $142 47. Ng4 Ba6 48. Rxh7 Rxb6) 47. Kf4 {[%emt 0:00:00]} Rb4 {[%emt 0:00:00]} 48. Kg5 {[%emt 0:00:00] [#] White threatens Kf6 and mate.} Ke8 {[%emt 0:00:00]} 49. Nf5 {[%emt 0:00:00] White mates.} Bxd5 {[%emt 0:00:00]} 50. Rxh7 {[%emt 0:00:00]} Bg8 {[%emt 0:00:00]} 51. Rg7 {[%emt 0:00:00]} Kf8 {[%emt 0:00:00]} 52. b7 {[%emt 0:00:00] Weighted Error Value: White=0.48/Black=0.52.  Loses game:     	---       	Black=3      Missed win:     	White=2     	---        Mistake:       	White=2     	Black=6      Inaccurate:     	White=4     	Black=1      OK:         	White=11    	Black=13     Best:        	White=4     	Black=4      Strong:       	White=1     	---} 1-0

[Event "XTX Markets London Masters 2024"]
[Site "London"]
[Date "2024.11.29"]
[Round "1.24"]
[White "Stone, Andrew M"]
[Black "Balaji, Aaravamudhan"]
[Result "1/2-1/2"]
[ECO "A29"]
[WhiteElo "2118"]
[BlackElo "2377"]
[Annotator "TA"]
[PlyCount "56"]
[EventDate "2024.11.28"]
[EventType "swiss"]
[EventCountry "ENG"]
[SourceTitle "playchess.com"]
[Source "ChessBase"]
[SourceQuality "1"]
[TimeControl "40/5400+30:1800+30"]

{[%evp 10,56,19,22,16,17,31,29,39,45,47,43,75,70,66,50,98,77,98,49,68,52,68,35,29,0,0,0,0,0,0,0,0,-18,-11,0,17,20,694,699,699,694,681,0,0,0,668,0,0]} 1. c4 {[%emt 0:00:04]} e5 {[%emt 0:01:39]} 2. Nc3 {[%emt 0:00:07]} Nc6 {[%emt 0:00:18]} 3. Nf3 {[%emt 0:00:16]} Nf6 {[%emt 1:30:03]} 4. g3 {[%emt 0:00:23]} g6 {[%emt 0:00:00]} 5. d4 {[%emt 0:04:06]} exd4 {[%emt 0:00:00]} 6. Nxd4 {[%emt 0:00:06]} Bg7 {[%emt 0:00:00]} 7. Nxc6 {[%emt 0:05:51]} bxc6 {[%emt 0:00:00]} 8. Bg2 {[%emt 0:00:28]} Ng4 {[%emt 0:00:00]} 9. Qc2 {[%emt 0:11:27]} O-O {[%emt 0:00:00]} 10. O-O {[%emt 0:01:00]} Ne5 {[%emt 0:00:00]} 11. b3 {[%emt 0:04:42]} d6 {[%emt 0:00:00]} 12. Bb2 {[%emt 0:04:16]} h5 {[%emt 0:00:00]} (12... Rb8 $14 {was preferable.}) 13. Rad1 {[%emt 0:04:27]} h4 {[%emt 0:00:00]} 14. Nb1 {[%emt 0:09:07] White is more active.} ({White should try} 14. Qd2 $16) 14... h3 {[%emt 0:00:00]} 15. Bh1 $1 {[%emt 0:00:59] f4 would now be deadly.} Bd7 {[%emt 0:00:00]} 16. Nd2 {[%emt 0:30:07]} Qe7 {[%emt 0:05:54]} 17. Nf3 {[%emt 0:01:20]} Bf5 {[%emt 0:00:27]} 18. Qd2 {[%emt 0:01:15]} Nxf3+ {[%emt 0:00:29]} 19. Bxf3 {[%emt 0:00:19]} Bxb2 {[%emt 0:00:06]} 20. Qxb2 {[%emt 0:00:04]} Be4 $1 {[%emt 0:00:09]} 21. Qd4 {[%emt 0:03:51]} Bxf3 {[%emt 0:00:36]} (21... Rfe8 {simplifies} 22. Qxe4 Qxe4 23. Bxe4 Rxe4 24. Rfe1 Rae8) 22. exf3 {[%emt 0:00:06]} Qe2 {[%emt 0:00:02]} 23. Qc3 $1 {[%emt 0:03:59]} Rfe8 $2 {[%emt 0:01:04][%mdl 8192] [#]} (23... Qxa2 $2 {is the wrong capture.} 24. Ra1 $18) (23... Qe5 $11 24. Qxe5 dxe5) 24. Rde1 $1 $18 {[%emt 0:01:44]} Qxa2 {[%emt 0:00:50] [#]} 25. Ra1 $1 {[%emt 0:00:04]} Qe2 {[%emt 0:00:51]} 26. Rae1 {[%emt 0:00:06]} Qa2 {[%emt 0:00:12] aiming for ...Rab8.} 27. Ra1 $1 {[%emt 0:00:05]} Qe2 {[%emt 0:00:08]} 28. Rae1 $2 {[%emt 0:00:09]} (28. Rfe1 $18) 28... Qa2 {[%emt 0:00:06]} 1/2-1/2

[Event "XTX Markets London Masters 2024"]
[Site "London"]
[Date "2024.11.29"]
[Round "1.25"]
[White "Thorfinnsson, Bjorn"]
[Black "Merriman, James"]
[Result "1-0"]
[ECO "A48"]
[WhiteElo "2370"]
[BlackElo "2084"]
[Annotator "TA"]
[PlyCount "113"]
[EventDate "2024.11.28"]
[EventType "swiss"]
[EventCountry "ENG"]
[SourceTitle "playchess.com"]
[Source "ChessBase"]
[SourceQuality "1"]
[TimeControl "40/5400+30:1800+30"]

{[%evp 11,113,5,0,0,-5,0,4,4,5,4,4,3,7,3,26,17,20,24,20,33,19,0,0,1,10,0,0,0,0,0,0,0,0,0,20,0,-15,-16,0,0,0,0,0,0,50,34,37,0,0,0,0,0,0,0,0,0,25,29,295,343,343,343,343,336,330,330,323,289,268,253,253,99,203,203,165,185,973,643,2385,2343,4134,3636,2084,1593,6079,5624,29975,29976,29976,29975,29975,29976,29975,29975,29975,29977,29976,29977,29976,29978,29980,29981,29979,29978]} 1. d4 {[%emt 0:00:04]} Nf6 {[%emt 0:00:25]} 2. Nf3 {[%emt 0:00:04]} c5 {[%emt 0:00:06]} 3. c3 {[%emt 0:00:05]} g6 {[%emt 0:04:40]} 4. Bg5 {[%emt 0:00:12]} Bg7 {[%emt 0:03:27]} 5. e3 {[%emt 0:00:09]} O-O {[%emt 0:02:09]} 6. Nbd2 {[%emt 0:00:19]} b6 {[%emt 0:05:21]} 7. Qc2 {[%emt 0:00:26]} d5 {[%emt 0:06:38]} 8. h3 {[%emt 0:02:13]} Bf5 {[%emt 0:03:25]} 9. Bd3 {[%emt 0:00:09] The position is equal.} Bxd3 {[%emt 0:00:32]} 10. Qxd3 {[%emt 0:00:04]} Nc6 {[%emt 0:02:30]} 11. O-O {[%emt 0:08:53]} Qd7 {[%emt 0:12:51]} 12. Bxf6 {[%emt 0:03:23]} Bxf6 {[%emt 0:06:52]} 13. dxc5 $1 {[%emt 0:00:10]} bxc5 {[%emt 0:00:06]} 14. Ne4 {[%emt 0:00:17]} c4 {[%emt 0:02:06]} 15. Nxf6+ {[%emt 0:00:08]} exf6 {[%emt 0:00:02]} 16. Qc2 {[%emt 0:01:44]} Ne5 {[%emt 0:01:11]} 17. Nxe5 {[%emt 0:01:50]} fxe5 {[%emt 0:02:41]} 18. Rfd1 {[%emt 0:00:03]} Qc6 {[%emt 0:03:09]} 19. Rd2 {[%emt 0:00:46]} Rfd8 {[%emt 0:02:26]} 20. Rad1 {[%emt 0:00:06][%cal Oe3e4]} f5 {[%emt 0:05:51]} 21. b3 {[%emt 0:02:14]} Rac8 {[%emt 0:01:31]} 22. b4 {[%emt 0:00:48]} a5 {[%emt 0:01:55]} 23. a4 {[%emt 0:11:13]} axb4 {[%emt 0:03:56]} 24. cxb4 {[%emt 0:00:04]} c3 {[%emt 0:03:33]} 25. Rd3 {[%emt 0:00:08]} Qc4 {[%emt 0:01:51]} 26. b5 {[%emt 0:04:42]} d4 {[%emt 0:00:23]} 27. f4 {[%emt 0:00:15]} Ra8 {[%emt 0:06:35]} (27... exf4 $11 28. exd4 Re8) 28. fxe5 {[%emt 0:01:25] [#] aiming for b6.} (28. b6 {looks sharper.} Qxa4 29. Rxc3 Rdb8 30. exd4 exd4 31. Qb3+) 28... Qxa4 {[%emt 0:01:18]} 29. Rxc3 {[%emt 0:05:43] Qxa4 would now be deadly.} Qxc2 {[%emt 0:04:01]} 30. Rxc2 {[%emt 0:00:04]} dxe3 $14 {[%emt 0:00:16][%mdl 4096] Endgame. KRR-KRR} 31. Rb1 {[%emt 0:05:53]} Rd2 {[%emt 0:02:33]} 32. Rxd2 {[%emt 0:00:38]} exd2 $11 {[%emt 0:00:04] KR-KR} 33. Kf2 {[%emt 0:00:04]} Kf7 {[%emt 0:01:35]} 34. Ke2 {[%emt 0:00:09][%cal Ob5b6] Threatens to win with b6!} Rd8 $2 {[%emt 0:03:23][%mdl 8192]} (34... Ke6 $11 {and Black has nothing to worry.}) 35. b6 $18 {[%emt 0:00:27][%cal Bb5b6,Bb6b7][%mdl 32]} Ke6 {[%emt 0:00:39][%cal Od8d7]} 36. b7 {[%emt 0:00:07]} d1=Q+ {[%emt 0:00:55]} 37. Rxd1 {[%emt 0:00:08]} Rb8 {[%emt 0:00:03]} 38. Rb1 {[%emt 0:01:45]} Kxe5 {[%emt 0:00:06] [#]} 39. h4 {[%emt 0:02:53] Ke3 is the strong threat.} h6 {[%emt 0:03:26]} 40. Ke3 {[%emt 0:01:44] Hoping for Rb5+.} g5 {[%emt 0:01:39]} 41. h5 {[%emt 0:30:48]} (41. Rb5+ $18 {and White stays clearly on top.} Kd6 42. hxg5 (42. Rxf5 Rxb7 43. Rf6+ Kd5 $14) 42... hxg5 43. Kf2 (43. Rxf5 Rxb7 44. Rf8 Ke6 $11)) 41... f4+ {[%emt 0:32:04]} (41... Kd5 $16 {was worth a try.}) 42. Kf3 {[%emt 0:00:27]} Kd5 {[%emt 0:02:05]} 43. Rb6 {[%emt 0:00:14]} Ke5 $2 {[%emt 0:00:39]} (43... Kd4 44. Kg4 (44. Rxh6 Rxb7 45. Rg6 Rb3+ 46. Kf2 Ke4 $11) 44... Ke5) 44. Kg4 {[%emt 0:00:40]} ({Weaker is} 44. Rxh6 Rxb7 45. Kg4 Rb3 46. Kxg5 Rb2 $11 (46... Rg3+ 47. Kh4 $11)) 44... Ke4 {[%emt 0:00:35]} 45. Rxh6 {[%emt 0:01:11]} Rxb7 {[%emt 0:00:03]} 46. Re6+ {[%emt 0:00:41]} ({Less strong is} 46. Kxg5 Rb5+ 47. Kg4 Ke5 $14) 46... Kd5 {[%emt 0:01:54]} 47. Re2 {[%emt 0:00:27]} Rf7 {[%emt 0:00:00]} 48. h6 {[%emt 0:00:37][%cal Bh5h6,Bh6h7][%mdl 32]} f3 {[%emt 0:00:27]} 49. gxf3 {[%emt 0:00:32] White mates.} Rf4+ {[%emt 0:00:01]} 50. Kg3 {[%emt 0:01:17]} Rf8 {[%emt 0:00:14]} 51. h7 {[%emt 0:00:49]} Rh8 {[%emt 0:00:25]} 52. Re7 {[%emt 0:00:07]} Kd6 {[%emt 0:00:10]} 53. Ra7 {[%emt 0:00:06]} Ke6 {[%emt 0:00:10]} 54. Kg4 {[%emt 0:00:05]} Kf6 {[%emt 0:00:04]} 55. Kh5 {[%emt 0:00:19]} Kf5 {[%emt 0:00:28]} 56. Rf7+ {[%emt 0:00:20]} Ke6 {[%emt 0:00:15]} 57. Kg6 {[%emt 0:00:06] Weighted Error Value: White=0.07 (flawless) /Black=0.32.  Loses game:     	---       	Black=1      Mistake:       	White=1     	Black=3      Inaccurate:     	White=2     	Black=1      OK:         	White=17    	Black=14     Best:        	White=6     	Black=4      Strong:       	White=1     	---} 1-0

[Event "XTX Markets London Masters 2024"]
[Site "London"]
[Date "2024.11.29"]
[Round "1.26"]
[White "Patel, Zain"]
[Black "Tanmay Chopra"]
[Result "1/2-1/2"]
[ECO "D05"]
[WhiteElo "2083"]
[BlackElo "2361"]
[Annotator "TA"]
[PlyCount "122"]
[EventDate "2024.11.28"]
[EventType "swiss"]
[EventCountry "ENG"]
[SourceTitle "playchess.com"]
[Source "ChessBase"]
[SourceQuality "1"]
[TimeControl "40/5400+30:1800+30"]

{[%evp 12,122,14,9,21,16,18,7,3,4,13,10,11,15,0,27,28,0,0,-43,-15,-13,-17,-20,-21,-32,-32,-32,-29,-29,-27,-17,-25,-25,-25,-25,-25,-25,-25,-25,-25,-25,-25,-25,-25,-25,-25,-25,-25,-47,0,0,0,0,-6,-6,-7,-7,0,0,0,0,0,0,0,0,0,0,0,0,0,0,0,0,0,0,0,0,0,0,0,0,0,0,0,0,0,0,0,0,0,0,0,0,0,0,0,0,0,0,0,0,0,0,0,0,0,0,0,0,0,0,0]} 1. d4 {[%emt 0:00:24]} Nf6 {[%emt 0:00:05]} 2. Nf3 {[%emt 0:01:35]} d5 {[%emt 0:00:06]} 3. e3 {[%emt 0:01:59]} e6 {[%emt 0:00:30]} 4. Bd3 {[%emt 0:01:10]} c5 {[%emt 0:00:15]} 5. b3 {[%emt 0:01:24]} Nc6 {[%emt 0:00:07]} 6. O-O {[%emt 0:00:08]} b6 {[%emt 0:00:09]} 7. Bb2 {[%emt 0:02:12]} Bb7 {[%emt 0:00:25]} 8. a3 {[%emt 0:02:45]} Bd6 {[%emt 0:00:14]} 9. dxc5 {[%emt 0:05:01]} bxc5 {[%emt 0:01:28]} 10. c4 {[%emt 0:01:45]} O-O {[%emt 0:01:01]} 11. Nbd2 {[%emt 0:03:01]} Re8 {[%emt 0:02:59]} 12. Re1 {[%emt 0:05:31]} d4 {[%emt 0:47:40]} 13. exd4 {[%emt 0:17:57]} Nxd4 {[%emt 0:00:12]} 14. Bxd4 {[%emt 0:01:59]} cxd4 {[%emt 0:00:09]} 15. Ne4 {[%emt 0:01:17]} Nxe4 {[%emt 0:12:09]} 16. Bxe4 {[%emt 0:00:07]} Bxe4 {[%emt 0:00:03]} 17. Rxe4 {[%emt 0:00:07]} e5 {[%emt 0:01:44]} 18. Nxd4 {[%emt 0:06:05]} exd4 {[%emt 0:01:09]} 19. Rxd4 {[%emt 0:00:06]} Be5 $1 {[%emt 0:00:16]} ({Much worse is} 19... Re6 20. c5 Bxh2+ 21. Kxh2 Qc7+ 22. g3 (22. Rd6 Rd8 $11) 22... Qxc5 23. b4 $14) 20. Rxd8 {[%emt 0:00:16]} Raxd8 {[%emt 0:00:02]} 21. Qc1 {[%emt 0:01:26]} Bxa1 {[%emt 0:00:03]} 22. Qxa1 {[%emt 0:00:04]} Rd3 $1 {[%emt 0:00:10]} 23. g3 {[%emt 0:02:43]} Rxb3 {[%emt 0:00:15]} 24. a4 {[%emt 0:02:15]} Rb4 {[%emt 0:04:34]} 25. Qd4 {[%emt 0:02:08]} Rxa4 {[%emt 0:01:57]} 26. Qd7 {[%emt 0:00:45]} Ra1+ {[%emt 0:00:07]} ({Worse is} 26... Rxc4 27. Qxe8#) 27. Kg2 {[%emt 0:00:05]} Rf8 {[%emt 0:00:32]} 28. c5 {[%emt 0:01:03]} a5 {[%emt 0:00:40]} 29. c6 {[%emt 0:00:52]} Rc1 {[%emt 0:01:08]} 30. c7 {[%emt 0:02:16]} g6 {[%emt 0:03:04]} 31. h4 {[%emt 0:00:59]} a4 {[%emt 0:06:29]} 32. Qxa4 {[%emt 0:00:55]} Rxc7 {[%emt 0:00:02]} 33. h5 {[%emt 0:00:39]} gxh5 {[%emt 0:01:44]} 34. Qb5 {[%emt 0:00:48]} f5 {[%emt 0:02:45]} 35. Qe2 {[%emt 0:01:09]} h4 {[%emt 0:03:03]} 36. gxh4 {[%emt 0:00:51]} Rg7+ {[%emt 0:00:41]} 37. Kh3 {[%emt 0:00:58]} Rg6 {[%emt 0:01:15]} 38. h5 {[%emt 0:00:34]} Rgf6 {[%emt 0:01:04]} 39. f4 {[%emt 0:00:33]} h6 {[%emt 0:02:30]} 40. Kh4 {[%emt 0:01:09]} R8f7 {[%emt 0:00:37]} 41. Qe5 {[%emt 0:30:47]} Kh7 {[%emt 0:30:47]} 42. Qe8 {[%emt 0:01:16]} Rg7 {[%emt 0:03:33]} 43. Qe5 {[%emt 0:01:55]} Rgf7 {[%emt 0:00:00]} 44. Qe8 {[%emt 0:00:00]} Kg7 {[%emt 0:00:00]} 45. Qe5 {[%emt 0:00:00]} Kg8 {[%emt 0:00:00]} 46. Qe8+ {[%emt 0:00:00]} Rf8 {[%emt 0:00:00]} 47. Qe7 {[%emt 0:00:00]} Rc6 {[%emt 0:00:00]} 48. Qd7 {[%emt 0:00:00]} Rcf6 {[%emt 0:00:00]} 49. Qe7 {[%emt 0:00:00]} R8f7 {[%emt 0:00:00]} 50. Qe8+ {[%emt 0:00:00]} Kg7 {[%emt 0:00:00]} 51. Qe5 {[%emt 0:00:00]} Rd7 {[%emt 0:00:00]} 52. Qe8 {[%emt 0:00:00]} Rc7 {[%emt 0:00:00]} 53. Qd8 {[%emt 0:00:00]} Rb7 {[%emt 0:00:00]} 54. Qc8 {[%emt 0:00:00]} Re7 {[%emt 0:00:00]} 55. Qd8 {[%emt 0:00:00]} Ree6 {[%emt 0:06:23]} 56. Qd7+ {[%emt 0:00:00]} Kg8 {[%emt 0:00:04]} 57. Qc8+ {[%emt 0:00:00]} Kf7 {[%emt 0:00:09]} 58. Qd7+ {[%emt 0:00:00]} Kf8 {[%emt 0:00:25]} 59. Qd8+ {[%emt 0:00:00]} Kf7 {[%emt 0:00:01]} 60. Qd7+ {[%emt 0:00:00]} Re7 {[%emt 0:00:06]} 61. Qd8 {[%emt 0:00:00]} Ree6 {[%emt 0:03:44]} 1/2-1/2

[Event "XTX Markets London Masters 2024"]
[Site "London"]
[Date "2024.11.29"]
[Round "1.27"]
[White "Derakhshani, Borna"]
[Black "Sivanandan, Bodhana"]
[Result "1-0"]
[ECO "B12"]
[WhiteElo "2355"]
[BlackElo "2082"]
[Annotator "TA"]
[PlyCount "91"]
[EventDate "2024.11.28"]
[EventType "swiss"]
[EventCountry "ENG"]
[SourceTitle "playchess.com"]
[Source "ChessBase"]
[SourceQuality "1"]
[TimeControl "40/5400+30:1800+30"]

{[%evp 13,90,29,49,19,18,17,33,0,22,25,43,32,53,47,49,45,51,47,51,41,41,39,82,103,242,258,254,231,223,222,203,214,502,471,602,577,574,541,981,513,555,514,714,490,697,584,675,633,1143,1136,1160,1156,1097,810,1285,1203,1460,1413,29947,5912,5477,5310,29986,29987,29987,29986,29987,29988,29988,29989,29989,29990,29994,29995,29995,29996,29997,29998,29999]} 1. e4 {[%emt 0:00:04]} c6 {[%emt 0:00:14]} 2. d4 {[%emt 0:00:07]} d5 {[%emt 0:00:10]} 3. e5 {[%emt 0:00:06]} Bf5 {[%emt 0:00:26]} 4. Nf3 {[%emt 0:00:07]} e6 {[%emt 0:00:42]} 5. Be2 {[%emt 0:00:06]} c5 {[%emt 0:00:21]} 6. Be3 {[%emt 0:00:07]} Qb6 {[%emt 0:01:13]} 7. Nc3 {[%emt 0:00:06]} Nc6 {[%emt 0:01:46]} 8. Na4 {[%emt 0:00:48][%csl LRb6,LRc5]} Qa5+ {[%emt 0:01:18]} 9. c3 {[%emt 0:00:06]} c4 {[%emt 0:00:52]} 10. b4 {[%emt 0:00:06]} (10. Nh4 $5) 10... Qd8 {[%emt 0:04:10]} (10... Bxb4 $5 11. cxb4 Nxb4 $14) 11. O-O {[%emt 0:00:07]} Bg4 {[%emt 0:02:50]} 12. h3 {[%emt 0:05:30]} Bxf3 {[%emt 0:00:26]} 13. Bxf3 {[%emt 0:00:08]} Nge7 {[%emt 0:00:49]} 14. Bg4 {[%emt 0:05:17]} g6 {[%emt 0:12:44]} 15. Bg5 {[%emt 0:01:38]} Bg7 {[%emt 0:03:54]} 16. Nc5 {[%emt 0:01:40]} Qc8 $1 {[%emt 0:02:07]} 17. Bf6 $1 $36 {[%emt 0:32:20][%mdl 2048] White fights for an advantage.} Bxf6 {[%emt 0:13:58]} 18. exf6 {[%emt 0:03:15]} Nf5 {[%emt 0:02:02] [#]} (18... b6 $16) 19. Bxf5 $1 $18 {[%emt 0:00:26]} gxf5 {[%emt 0:00:50]} 20. Qh5 {[%emt 0:00:49]} Nd8 {[%emt 0:06:19]} 21. b5 {[%emt 0:03:32]} b6 {[%emt 0:06:58]} 22. Na6 {[%emt 0:00:05][%cal Bc5a6,Ba6b4,Bb4d5,Bd5e3,Be3c4,Bc4e5][%mdl 32]} Rg8 $2 {[%emt 0:02:06] Black is weak on the dark squares} (22... h6 {was called for.} 23. Rae1 Kf8) 23. Qxh7 {[%emt 0:01:11]} Rg6 {[%emt 0:00:24]} 24. Rfe1 {[%emt 0:03:46]} Kd7 {[%emt 0:05:33]} 25. Nb4 {[%emt 0:00:34]} Qc7 {[%emt 0:03:35] [#]} 26. Nxd5 $1 {[%emt 0:01:04][%mdl 512]} Qd6 {[%emt 0:02:29]} 27. Ne3 {[%emt 0:00:22]} Qf8 {[%emt 0:01:16]} 28. Nxc4 {[%emt 0:00:50] Strongly threatening Ne5+.} Rxf6 {[%emt 0:01:47]} (28... Rh6 $142) 29. Qh4 {[%emt 0:00:16]} Qh6 {[%emt 0:01:11]} 30. Qg3 {[%emt 0:00:54]} Qf8 {[%emt 0:06:15]} 31. Rad1 {[%emt 0:02:08]} f4 {[%emt 0:02:22]} 32. Qf3 {[%emt 0:00:53]} Rc8 {[%emt 0:00:57]} 33. Ne5+ {[%emt 0:00:05]} Kc7 {[%emt 0:00:14][%cal Bd7c7,Bc7b6,Bb6b7,Bb7b8][%mdl 32]} 34. c4 {[%emt 0:00:24]} Rf5 {[%emt 0:00:32] [#]} 35. c5 $1 {[%emt 0:00:12]} Qe8 {[%emt 0:00:57]} (35... Rxe5 36. Qxf4) 36. cxb6+ {[%emt 0:00:48]} Kxb6 {[%emt 0:00:21]} 37. Qa3 {[%emt 0:00:11] White threatens Qa6+ and mate.} Kb7 {[%emt 0:00:45]} 38. Qa6+ {[%emt 0:00:19]} Kb8 {[%emt 0:00:53]} 39. Rc1 {[%emt 0:00:05]} Rxc1 {[%emt 0:01:07]} 40. Rxc1 {[%emt 0:00:05][%csl Ga6][%cal Rc1c8]} Nb7 {[%emt 0:00:31]} 41. Nc6+ {[%emt 0:30:04]} Kc7 {[%emt 0:30:37]} 42. Nxa7+ {[%emt 0:00:12]} Kb8 {[%emt 0:00:32]} 43. Nc6+ {[%emt 0:00:48]} Kc7 {[%emt 0:00:16]} 44. Ne5+ {[%emt 0:00:21]} Kb8 {[%emt 0:00:11]} 45. b6 {[%emt 0:00:04][%csl Gb6][%cal Ra6a7]} f6 {[%emt 0:00:23]} 46. Qa7# {[%emt 0:00:06]} 1-0